[Event "Gibraltar Challengers B 2020"]
[Site "Caleta"]
[Date "2020.01.27"]
[Round "4.23"]
[White "Paul, Nathanael"]
[Black "Kukic, Boris"]
[Result "1-0"]
[ECO "D00"]
[WhiteElo "1987"]
[BlackElo "2056"]
[Annotator "NA RC"]
[PlyCount "57"]
[EventDate "2020.01.20"]
[EventType "swiss"]
[EventCountry "GGB"]
[SourceTitle "playchess.com"]
[Source "ChessBase"]
[SourceQuality "1"]
[TimeControl "6600+10"]

1. d4 {[%emt 0:00:00]} d5 {[%emt 0:00:28]} 2. Bf4 {[%emt 0:00:00]} Nf6 {[%emt 0:00:50]} 3. e3 {[%emt 0:00:04]} a6 {[%emt 0:00:24]} 4. Nd2 {[%emt 0:00:18]} b6 {[%emt 0:00:55]} 5. Bd3 {[%emt 0:00:12]} Bb7 {[%emt 0:00:11]} 6. c3 {[%emt 0:00:05]} e6 {[%emt 0:00:12]} 7. Ngf3 {[%emt 0:00:43]} Nbd7 {[%emt 0:00:20]} 8. Ne5 {[%emt 0:00:29]} Nxe5 {[%emt 0:00:16]} 9. Bxe5 {[%emt 0:00:54]} Bd6 {[%emt 0:00:09]} 10. f4 {[%emt 0:02:04]} h6 {[%emt 0:00:39]} 11. Qf3 {[%emt 0:02:44]} Qe7 {[%emt 0:03:31]} 12. O-O-O {[%emt 0:00:50]} Bxe5 {[%emt 0:00:16]} 13. fxe5 {[%emt 0:00:32]} Nd7 {[%emt 0:00:19]} 14. Rhf1 {[%emt 0:02:58]} b5 {[%emt 0:00:19]} 15. Qg3 {[%emt 0:00:28]} Qg5 {[%emt 0:00:35]} 16. Qf2 {[%emt 0:00:50]} f5 {[%emt 0:04:13]} 17. g4 {[%emt 0:00:41]} g6 {[%emt 0:00:29]} 18. h4 {[%emt 0:00:02]} Qe7 {[%emt 0:00:23]} 19. h5 {[%emt 0:00:10]} O-O-O {[%emt 0:01:23]} 20. hxg6 {[%emt 0:00:17]} fxg4 {[%emt 0:00:18]} 21. Qf7 {[%emt 0:00:55]} Qxf7 {[%emt 0:02:13]} 22. Rxf7 {[%emt 0:00:03]} h5 {[%emt 0:00:32]} 23. g7 {[%emt 0:00:02]} Rhe8 {[%emt 0:03:16]} 24. Rh1 {[%emt 0:00:23]} Nxe5 {[%emt 0:00:51]} 25. dxe5 {[%emt 0:00:46]} d4 {[%emt 0:00:08]} 26. Be4 {[%emt 0:00:48]} dxe3 {[%emt 0:00:09]} 27. Bxb7+ {[%emt 0:00:10]} Kxb7 {[%emt 0:00:07]} 28. Ne4 {[%emt 0:00:18]} e2 {[%emt 0:00:17]} 29. Nd6+ $18 {[%emt 0:00:35] Double Attack} 1-0

[Event "Gibraltar Challengers B 2020"]
[Site "Caleta"]
[Date "2020.01.27"]
[Round "4.24"]
[White "Patola, Eero"]
[Black "Karlsson, Jorgen"]
[Result "0-1"]
[ECO "A25"]
[WhiteElo "1831"]
[BlackElo "2054"]
[Annotator "NA"]
[PlyCount "152"]
[EventDate "2020.01.20"]
[EventType "swiss"]
[EventCountry "GGB"]
[SourceTitle "playchess.com"]
[Source "ChessBase"]
[SourceQuality "1"]
[TimeControl "6600+10"]

1. c4 {[%emt 0:00:00]} e5 {[%emt 0:00:03]} 2. Nc3 {[%emt 0:00:04]} Nc6 {[%emt 0:00:10]} 3. g3 {[%emt 0:00:16]} Bc5 {[%emt 0:02:44]} 4. Bg2 {[%emt 0:00:15]} a6 {[%emt 0:00:38]} 5. d3 {[%emt 0:02:20]} Nf6 {[%emt 0:01:53]} 6. h3 {[%emt 0:00:45]} d6 {[%emt 0:01:17]} 7. Nf3 {[%emt 0:03:19]} h6 {[%emt 0:02:11]} 8. O-O {[%emt 0:00:27]} Be6 {[%emt 0:00:20]} 9. a3 {[%emt 0:01:03]} Qd7 {[%emt 0:00:40]} 10. Kh2 {[%emt 0:00:16]} g5 {[%emt 0:01:08]} 11. b4 {[%emt 0:00:31]} Ba7 {[%emt 0:02:10]} 12. b5 {[%emt 0:00:39]} axb5 {[%emt 0:00:26]} 13. Nxb5 {[%emt 0:00:32]} Bb6 {[%emt 0:00:30]} 14. Be3 {[%emt 0:02:35]} Ba5 {[%emt 0:16:41]} 15. Rc1 {[%emt 0:05:08]} (15. Nd2 $1 $14) 15... g4 {[%emt 0:00:22]} 16. Ng1 {[%emt 0:00:20]} (16. Nd2 $11) 16... gxh3 {[%emt 0:00:17]} 17. Bxh3 {[%emt 0:03:18]} Bxh3 {[%emt 0:01:06]} 18. Nxh3 {[%emt 0:00:21]} Ng4+ {[%emt 0:00:35]} 19. Kg2 {[%emt 0:00:13]} d5 {[%emt 0:05:33]} 20. Bd2 {[%emt 0:02:32]} (20. d4 $17 {was worth a try.}) 20... d4 {[%emt 0:04:06]} (20... Bxd2 $142 21. Qxd2 d4) 21. e3 {[%emt 0:05:16]} Bxd2 {[%emt 0:00:52]} 22. Qxd2 {[%emt 0:00:16]} f5 $2 {[%emt 0:03:56]} ({Better is} 22... dxe3 $17 23. fxe3 O-O-O) 23. exd4 {[%emt 0:01:05]} Nxd4 {[%emt 0:00:15]} 24. Nxd4 {[%emt 0:01:41]} ({White should play} 24. f3 $11 Nb3 {[%mdl 64] Double Attack} 25. Qe2 Nxc1 26. Rxc1) 24... Qxd4 {[%emt 0:00:08]} ({Of course not} 24... exd4 $6 25. Rce1+ Kf7 26. Qb2 $16) 25. Qc3 {[%emt 0:00:14]} (25. Rce1 $1 $11) 25... c5 {[%emt 0:01:58]} (25... O-O-O $17 26. Rfd1 Qc5) 26. Qxd4 {[%emt 0:02:00]} cxd4 {[%emt 0:00:07]} 27. Rb1 {[%emt 0:01:17]} Rxa3 {[%emt 0:00:29]} 28. Rxb7 {[%emt 0:00:17]} O-O {[%emt 0:00:08]} 29. Rd1 {[%emt 0:00:28]} Ra2 {[%emt 0:00:28]} 30. Kg1 {[%emt 0:02:46]} Rfa8 {[%emt 0:05:17]} (30... Rf7 $5 {[%cal Rf7b7]} 31. Rb8+ Kh7 $15) 31. Rdb1 {[%emt 0:02:21]} Ra1 {[%emt 0:00:49]} 32. c5 {[%emt 0:02:52]} (32. f3 $1 $11 {keeps the balance.} Ne3 33. f4) 32... Rxb1+ {[%emt 0:01:09]} 33. Rxb1 {[%emt 0:00:10]} Kf7 {[%emt 0:01:59]} 34. f3 {[%emt 0:06:01]} Ne3 {[%emt 0:00:37]} 35. Nf2 {[%emt 0:00:19]} Rc8 {[%emt 0:02:18]} 36. Rc1 {[%emt 0:00:55]} h5 {[%emt 0:00:58]} 37. Kh2 {[%emt 0:00:47]} Ke6 {[%emt 0:00:27]} 38. Kh3 {[%emt 0:00:38]} Rc6 {[%emt 0:04:18]} 39. Kh4 {[%emt 0:01:06]} Kf6 {[%emt 0:00:33]} 40. g4 {[%emt 0:06:51]} hxg4 {[%emt 0:08:37]} 41. fxg4 {[%emt 0:01:16]} f4 {[%emt 0:03:14]} 42. Ne4+ {[%emt 0:02:15]} Kg6 {[%emt 0:00:21]} 43. Rb1 {[%emt 0:01:48]} Nd5 {[%emt 0:03:10]} 44. g5 {[%emt 0:05:14]} Rc8 {[%emt 0:01:08]} 45. Kg4 {[%emt 0:00:49]} Rh8 {[%emt 0:00:39]} 46. Nf2 {[%emt 0:02:19]} Ne3+ {[%emt 0:00:30]} 47. Kf3 {[%emt 0:00:24]} Kxg5 {[%emt 0:00:13]} 48. Ke4 {[%emt 0:01:38]} Rh2 {[%emt 0:03:10]} 49. Rg1+ {[%emt 0:01:03]} Kf6 {[%emt 0:00:28]} 50. Kf3 {[%emt 0:03:17]} Kf5 {[%emt 0:01:33]} 51. c6 {[%emt 0:04:49]} Rh7 {[%emt 0:00:44]} 52. Rc1 {[%emt 0:01:52]} Nd5 {[%emt 0:00:54]} 53. Rc5 {[%emt 0:01:04]} Ke6 {[%emt 0:00:25]} 54. Ke4 {[%emt 0:04:43]} (54. Ne4 $11 {remains equal.} Rg7 55. Rb5) 54... Nf6+ {[%emt 0:03:11]} 55. Kf3 {[%emt 0:00:18]} Kd6 {[%emt 0:01:02]} 56. Rb5 {[%emt 0:04:04]} (56. Ra5 $17 {was forced.}) 56... Re7 {[%emt 0:00:49]} 57. Rb6 {[%emt 0:00:57]} Rc7 {[%emt 0:00:58]} 58. Ne4+ {[%emt 0:03:19]} Nxe4 {[%emt 0:00:44]} 59. Kxe4 {[%emt 0:00:08]} Rxc6 {[%emt 0:00:25]} 60. Rb5 {[%emt 0:00:19]} Rc5 {[%emt 0:00:24]} 61. Rb6+ {[%emt 0:00:18]} Kc7 {[%emt 0:02:13]} 62. Re6 {[%emt 0:01:57]} Kd7 {[%emt 0:00:14]} 63. Rf6 {[%emt 0:00:25]} Rc6 {[%emt 0:00:44]} 64. Rf5 {[%emt 0:01:02]} Re6 {[%emt 0:01:22]} 65. Kd5 {[%emt 0:02:31]} Re8 {[%emt 0:01:16]} 66. Rf7+ {[%emt 0:00:52]} Re7 {[%emt 0:00:07]} 67. Rf5 {[%emt 0:00:14]} Kc7 {[%emt 0:00:10]} 68. Rf6 {[%emt 0:00:28]} e4 {[%emt 0:01:50]} 69. dxe4 {[%emt 0:05:25]} d3 {[%emt 0:00:08]} 70. Rc6+ {[%emt 0:00:54]} Kd8 {[%emt 0:00:36]} 71. Rc1 {[%emt 0:00:51]} Ke8 {[%emt 0:03:48]} 72. e5 {[%emt 0:00:13]} d2 {[%emt 0:02:24]} 73. Rd1 {[%emt 0:00:02]} f3 {[%emt 0:00:08]} 74. Ke4 {[%emt 0:00:03]} f2 {[%emt 0:00:09]} 75. Ke3 {[%emt 0:00:06]} Rf7 {[%emt 0:00:07]} 76. Ke2 {[%emt 0:00:13] [#]} f1=Q+ $19 {[%emt 0:00:15]} 0-1

[Event "Gibraltar Challengers B 2020"]
[Site "Caleta"]
[Date "2020.01.28"]
[Round "4.25"]
[White "Bujakevich, Aleksandr"]
[Black "Kozarcanin, Sead"]
[Result "1-0"]
[ECO "C51"]
[WhiteElo "2014"]
[BlackElo "2019"]
[Annotator "NA"]
[PlyCount "95"]
[EventDate "2020.01.20"]
[EventType "swiss"]
[EventCountry "GGB"]
[SourceTitle "playchess.com"]
[Source "ChessBase"]
[SourceQuality "1"]
[TimeControl "6600+10"]

1. e4 {[%emt 0:01:46]} e5 {[%emt 0:11:07]} 2. Nf3 {[%emt 0:00:00]} Nc6 {[%emt 0:00:02]} 3. Bc4 {[%emt 0:00:00]} Bc5 {[%emt 0:00:10]} 4. b4 {[%emt 0:00:22]} Bxb4 {[%emt 0:00:06]} 5. c3 {[%emt 0:00:13]} Bd6 {[%emt 0:00:16]} 6. d4 {[%emt 0:02:47]} Nf6 {[%emt 0:00:20] C51: Evans Gambit: Declined and Accepted without 5...Ba5} (6... Qe7 7. O-O f6 8. Re1 g6 9. Nbd2 Na5 10. Bd3 b6 11. Nc4 Nxc4 12. Bxc4 Bb7 13. a4 a5 14. Qd3 {0-1 (59) Nisipeanu,L (2665)-Bartel,M (2652) Germany 2014}) 7. O-O {[%emt 0:02:33]} O-O {[%emt 0:00:29]} 8. Re1 {[%emt 0:04:08]} h6 {[%emt 0:03:54]} 9. Nbd2 {[%emt 0:03:00]} Re8 {[%emt 0:09:03]} 10. Qc2 {[%emt 0:07:21]} Qe7 $146 {[%emt 0:11:17]} ({Predecessor:} 10... Bf8 11. Qb3 Qe7 12. Nxe5 Nxe5 13. dxe5 Ng4 14. Nf3 {1-0 (30) Meunier,C (2269)-Feryn,B (2153) Agen 2017}) 11. Nh4 {[%emt 0:17:13]} (11. Bf1 $11) 11... Kh7 {[%emt 0:06:21]} 12. Nf5 {[%emt 0:07:18]} Qf8 {[%emt 0:00:02] [#]} 13. f4 $1 {[%emt 0:09:49]} g6 {[%emt 0:04:50]} 14. fxe5 {[%emt 0:05:21]} gxf5 {[%emt 0:03:31]} 15. exf6 {[%emt 0:00:24]} Bf4 {[%emt 0:05:00]} 16. e5 {[%emt 0:09:00]} d6 {[%emt 0:01:18]} 17. Bd3 {[%emt 0:04:12]} dxe5 {[%emt 0:00:31]} 18. Bxf5+ {[%emt 0:00:11]} Kh8 {[%emt 0:00:17]} 19. Nf3 {[%emt 0:08:41]} Bxc1 {[%emt 0:01:34]} 20. Raxc1 {[%emt 0:00:40]} Bxf5 {[%emt 0:01:22]} 21. Qxf5 {[%emt 0:00:08]} exd4 {[%emt 0:00:45]} 22. cxd4 {[%emt 0:02:09]} Rxe1+ {[%emt 0:03:30]} 23. Rxe1 {[%emt 0:02:58]} Re8 {[%emt 0:01:55]} 24. Rxe8 {[%emt 0:01:02]} Qxe8 {[%emt 0:00:02]} 25. Qf4 {[%emt 0:00:52]} Kh7 {[%emt 0:01:09]} 26. g4 {[%emt 0:06:54]} Qd8 {[%emt 0:14:42]} 27. Qf5+ {[%emt 0:03:02]} Kg8 {[%emt 0:03:29]} 28. Qf4 {[%emt 0:04:23]} Kh7 $1 {[%emt 0:00:11]} 29. Kf2 {[%emt 0:01:21]} Qd5 {[%emt 0:00:52]} 30. a3 {[%emt 0:01:03]} Qd6 {[%emt 0:04:10]} 31. Qe4+ {[%emt 0:01:20]} Kg8 {[%emt 0:00:30]} 32. d5 {[%emt 0:01:57]} Nb8 {[%emt 0:04:52]} 33. Qe8+ {[%emt 0:00:39]} Qf8 {[%emt 0:00:07]} 34. Qe7 {[%emt 0:00:03]} Na6 {[%emt 0:03:27]} 35. Ne5 {[%emt 0:00:06]} Nc5 {[%emt 0:00:32]} 36. Kf3 {[%emt 0:01:27]} b6 {[%emt 0:00:13]} 37. Qxc7 {[%emt 0:00:32]} Na6 {[%emt 0:00:22]} 38. Qe7 {[%emt 0:00:12]} Nc5 $18 {[%emt 0:02:23]} 39. Qxa7 {[%emt 0:00:09]} Nb3 {[%emt 0:02:29]} 40. Qe7 {[%emt 0:00:13]} Nd4+ {[%emt 0:01:01]} 41. Kf2 {[%emt 0:00:44]} Nb5 {[%emt 0:00:00]} 42. a4 {[%emt 0:00:17]} Nc3 {[%emt 0:00:10]} 43. Qxf8+ {[%emt 0:00:14]} Kxf8 {[%emt 0:00:02]} 44. Nd7+ {[%emt 0:00:01]} Ke8 {[%emt 0:00:28]} 45. Nxb6 {[%emt 0:00:03]} Ne4+ {[%emt 0:00:08]} 46. Kf3 {[%emt 0:00:06]} Nxf6 {[%emt 0:00:03]} 47. a5 {[%emt 0:00:06]} Nxd5 {[%emt 0:01:47]} 48. Nxd5 {[%emt 0:00:03]} 1-0

[Event "Gibraltar Challengers B 2020"]
[Site "Caleta"]
[Date "2020.01.27"]
[Round "4.26"]
[White "Godoy Olazabal, Artur"]
[Black "O`neil, Jim"]
[Result "1-0"]
[ECO "A80"]
[WhiteElo "2154"]
[BlackElo "1870"]
[Annotator "ChessBase"]
[PlyCount "61"]
[EventDate "2020.01.20"]
[EventType "swiss"]
[EventCountry "GGB"]
[SourceTitle "playchess.com"]
[Source "ChessBase"]
[SourceQuality "1"]
[TimeControl "6600+10"]

1. d4 {[%emt 0:00:00]} f5 {[%emt 0:00:04]} 2. Nc3 {[%emt 0:00:08]} Nf6 {[%emt 0:00:11]} 3. f3 {[%emt 0:00:29]} d5 {[%emt 0:01:41]} 4. Bg5 {[%emt 0:01:35]} h6 {[%emt 0:01:28]} 5. Bxf6 {[%emt 0:00:58]} exf6 {[%emt 0:01:51]} 6. e4 {[%emt 0:00:36]} Bb4 {[%emt 0:03:34]} 7. exf5 {[%emt 0:00:30]} Bxf5 {[%emt 0:01:52]} 8. Bd3 {[%emt 0:00:05]} Qd7 {[%emt 0:01:44]} 9. Nge2 {[%emt 0:02:14]} Nc6 {[%emt 0:02:04]} 10. g4 {[%emt 0:03:39]} Bxd3 {[%emt 0:05:59]} 11. Qxd3 {[%emt 0:00:02]} O-O-O {[%emt 0:02:41]} 12. O-O-O {[%emt 0:01:03]} Rhe8 {[%emt 0:03:33]} 13. Nf4 {[%emt 0:04:36]} Bxc3 {[%emt 0:07:47]} 14. Qxc3 {[%emt 0:00:17]} Qd6 {[%emt 0:00:47]} 15. Qd2 {[%emt 0:03:03]} Na5 {[%emt 0:03:07]} 16. b3 {[%emt 0:02:33]} Qa3+ {[%emt 0:05:45]} 17. Kb1 {[%emt 0:05:05]} Rd6 {[%emt 0:07:07]} 18. Rhe1 {[%emt 0:01:22]} Red8 {[%emt 0:04:20]} 19. Ne6 {[%emt 0:02:13]} Ra6 {[%emt 0:05:38]} 20. Qc1 {[%emt 0:00:45]} Qxc1+ {[%emt 0:10:46]} 21. Kxc1 {[%emt 0:01:42]} Rg8 {[%emt 0:00:30]} 22. Nf4 {[%emt 0:00:33]} Rd6 {[%emt 0:02:09]} 23. Re3 {[%emt 0:03:45]} Nc6 {[%emt 0:02:16]} 24. c3 {[%emt 0:00:09]} Kd7 {[%emt 0:01:01]} 25. Rde1 {[%emt 0:00:11]} g5 {[%emt 0:01:06]} 26. Nh5 {[%emt 0:06:37]} f5 {[%emt 0:07:54]} 27. gxf5 {[%emt 0:00:15]} g4 {[%emt 0:00:04]} 28. Rg1 {[%emt 0:00:31]} Rg5 {[%emt 0:00:46]} 29. fxg4 {[%emt 0:00:10]} Ne7 {[%emt 0:00:49]} 30. f6 {[%emt 0:00:18]} Nf5 {[%emt 0:00:41]} 31. f7 {[%emt 0:00:09]} 1-0

[Event "Gibraltar Challengers B 2020"]
[Site "Caleta"]
[Date "2020.01.27"]
[Round "4.27"]
[White "Ruiz Buendia, Miguel"]
[Black "Bengherabi, Khalil"]
[Result "0-1"]
[ECO "B72"]
[WhiteElo "1917"]
[BlackElo "2106"]
[Annotator "ChessBase"]
[PlyCount "48"]
[EventDate "2020.01.20"]
[EventType "swiss"]
[EventCountry "GGB"]
[SourceTitle "playchess.com"]
[Source "ChessBase"]
[SourceQuality "1"]
[TimeControl "6600+10"]

1. e4 {[%emt 0:02:34]} c5 {[%emt 0:00:00]} 2. Nf3 {[%emt 0:00:03]} d6 {[%emt 0:01:19]} 3. d4 {[%emt 0:00:04]} cxd4 {[%emt 0:00:03]} 4. Nxd4 {[%emt 0:00:08]} Nf6 {[%emt 0:00:04]} 5. Nc3 {[%emt 0:00:05]} g6 {[%emt 0:00:04]} 6. Be3 {[%emt 0:00:09]} a6 {[%emt 0:01:51]} 7. a4 {[%emt 0:00:31]} b6 {[%emt 0:00:35]} 8. f3 {[%emt 0:00:48]} Bb7 {[%emt 0:00:05]} 9. Qd2 {[%emt 0:01:55]} Bg7 {[%emt 0:07:24]} 10. Be2 {[%emt 0:02:10]} O-O {[%emt 0:00:06]} 11. g4 {[%emt 0:00:45]} Nc6 {[%emt 0:10:55]} 12. h4 {[%emt 0:09:24]} Rc8 {[%emt 0:29:44]} 13. h5 {[%emt 0:06:37]} Nxd4 {[%emt 0:01:46]} 14. Bxd4 {[%emt 0:00:19]} e5 {[%emt 0:01:01]} 15. Be3 {[%emt 0:02:07]} Qc7 {[%emt 0:07:05]} 16. Bh6 {[%emt 0:11:52]} Bxh6 {[%emt 0:05:51]} 17. Qxh6 {[%emt 0:00:52]} Qe7 {[%emt 0:08:36]} 18. g5 {[%emt 0:05:19]} Nxh5 {[%emt 0:01:09]} 19. Bxa6 {[%emt 0:08:58]} Rxc3 {[%emt 0:02:03]} 20. Bxb7 {[%emt 0:05:41]} Rxc2 {[%emt 0:00:10]} 21. Bd5 {[%emt 0:01:35]} Rfc8 {[%emt 0:05:27]} 22. a5 {[%emt 0:06:16]} bxa5 {[%emt 0:01:58]} 23. Rxh5 {[%emt 0:10:52]} gxh5 {[%emt 0:00:41]} 24. g6 {[%emt 0:04:57]} Qh4+ {[%emt 0:00:07]} 0-1

[Event "Gibraltar Challengers B 2020"]
[Site "Caleta"]
[Date "2020.01.27"]
[Round "4.28"]
[White "Ungureanu, Sandu"]
[Black "Gonzalvez Tamarit, Ivan"]
[Result "1-0"]
[ECO "A50"]
[WhiteElo "2066"]
[BlackElo "1918"]
[Annotator "NA"]
[PlyCount "99"]
[EventDate "2020.01.20"]
[EventType "swiss"]
[EventCountry "GGB"]
[SourceTitle "playchess.com"]
[Source "ChessBase"]
[SourceQuality "1"]
[TimeControl "6600+10"]

1. Nf3 {[%emt 0:00:00]} Nf6 {[%emt 0:00:23]} 2. c4 {[%emt 0:00:06]} b6 {[%emt 0:01:44]} 3. g3 {[%emt 0:00:13]} Bb7 {[%emt 0:00:08]} 4. Bg2 {[%emt 0:00:06]} g6 {[%emt 0:00:38]} 5. O-O {[%emt 0:00:07]} Bg7 {[%emt 0:00:03]} 6. Nc3 {[%emt 0:00:19]} O-O {[%emt 0:02:07]} 7. d4 {[%emt 0:00:29]} Ne4 {[%emt 0:00:15]} 8. Qd3 {[%emt 0:01:47] A50: Queen's Fianchetto Defence (1 d4 Nf6 2 c4 b6)} (8. Nxe4 Bxe4 9. Be3 c5 10. Qd2 d6 11. Bh6 Nd7 12. Bxg7 {½-½ (12) Erdos,V (2609)-Almasi,Z (2691) Budapest 2019}) 8... Nxc3 {[%emt 0:00:49]} 9. Qxc3 {[%emt 0:00:34]} d6 {[%emt 0:01:32]} 10. Qd3 $146 {[%emt 0:00:43]} ({Predecessor:} 10. Qc2 Nd7 11. e4 e5 12. d5 a5 13. Rb1 Nc5 14. b3 Bc8 15. Nd2 Bh6 16. a3 {½-½ (23) Khusenkhojaev,M (2462)-Deviatkin,A (2471) New Delhi 2018}) 10... Nd7 {[%emt 0:03:31]} 11. Be3 {[%emt 0:01:00]} c5 {[%emt 0:02:15]} 12. Rad1 {[%emt 0:00:52]} Qc7 {[%emt 0:03:50]} 13. b3 {[%emt 0:00:53]} Rad8 {[%emt 0:10:40]} 14. Qd2 {[%emt 0:03:03]} Rfe8 {[%emt 0:04:31]} 15. Bh6 {[%emt 0:00:46]} Bh8 {[%emt 0:02:13]} ({Black should play} 15... Bxf3 $15 16. Bxf3 Bxd4) 16. d5 {[%emt 0:00:08]} Ne5 {[%emt 0:06:57]} 17. Nxe5 {[%emt 0:00:52]} Bxe5 {[%emt 0:00:36]} 18. f4 {[%emt 0:00:14]} Bd4+ {[%emt 0:01:20]} 19. e3 {[%emt 0:00:10]} Bg7 {[%emt 0:00:18]} 20. Bxg7 {[%emt 0:00:09]} Kxg7 {[%emt 0:00:11]} 21. f5 {[%emt 0:00:07]} f6 {[%emt 0:12:52]} 22. fxg6 {[%emt 0:03:30]} hxg6 {[%emt 0:00:14]} 23. Be4 {[%emt 0:00:50]} e5 {[%emt 0:04:28]} 24. g4 {[%emt 0:03:32]} Qd7 {[%emt 0:12:06]} 25. Qg2 {[%emt 0:00:54]} Bc8 {[%emt 0:01:40]} 26. h3 {[%emt 0:00:30]} Rh8 {[%emt 0:02:16]} 27. Rf3 {[%emt 0:00:51]} Rdf8 {[%emt 0:01:38]} 28. Rdf1 {[%emt 0:01:01]} Qe7 {[%emt 0:00:50]} 29. Qg3 {[%emt 0:02:47]} g5 {[%emt 0:00:26]} 30. Qg2 $11 {[%emt 0:01:18]} Qc7 {[%emt 0:06:14]} 31. R1f2 {[%emt 0:02:21]} Bd7 {[%emt 0:03:16]} 32. Qf1 {[%emt 0:01:51]} Rh6 {[%emt 0:00:08]} 33. h4 {[%emt 0:01:44]} Rxh4 {[%emt 0:04:16]} 34. Rxf6 {[%emt 0:00:13]} Rxf6 {[%emt 0:01:28]} 35. Rxf6 {[%emt 0:00:12]} Rxg4+ {[%emt 0:01:05]} 36. Bg2 {[%emt 0:00:19]} Rf4 {[%emt 0:04:51]} 37. exf4 {[%emt 0:00:59]} Kxf6 {[%emt 0:00:10]} 38. fxe5+ {[%emt 0:01:33]} Kxe5 {[%emt 0:00:30]} 39. Qa1+ {[%emt 0:00:39]} Kf5 {[%emt 0:00:42]} 40. Qg7 {[%emt 0:00:20]} g4 {[%emt 0:01:08]} 41. Qh7+ {[%emt 0:01:51]} Kf4 {[%emt 0:01:11]} 42. Qh6+ {[%emt 0:00:32]} Ke5 {[%emt 0:00:41]} 43. Qe3+ {[%emt 0:00:57]} Kf6 {[%emt 0:00:18]} 44. Qf4+ {[%emt 0:01:13]} Bf5 {[%emt 0:00:40]} 45. Be4 {[%emt 0:00:05]} Qd7 {[%emt 0:00:12]} 46. Kf2 {[%emt 0:00:56]} Qh7 {[%emt 0:03:13]} 47. Qxd6+ {[%emt 0:00:35]} Kg5 {[%emt 0:00:19]} 48. Qe5 {[%emt 0:00:56]} Qh4+ {[%emt 0:03:59]} 49. Ke2 {[%emt 0:00:12]} Kh6 {[%emt 0:01:07]} 50. Qh8+ {[%emt 0:00:21]} 1-0

[Event "Gibraltar Challengers B 2020"]
[Site "Caleta"]
[Date "2020.01.27"]
[Round "4.29"]
[White "Lung, Liviu-Catalin"]
[Black "Ashwani Kumar Grover"]
[Result "1/2-1/2"]
[ECO "C00"]
[WhiteElo "2041"]
[BlackElo "1731"]
[Annotator "NA"]
[PlyCount "109"]
[EventDate "2020.01.20"]
[EventType "swiss"]
[EventCountry "GGB"]
[SourceTitle "playchess.com"]
[Source "ChessBase"]
[SourceQuality "1"]
[TimeControl "6600+10"]

1. e4 {[%emt 0:00:00]} e6 {[%emt 0:14:26]} 2. d3 {[%emt 0:00:43]} d5 {[%emt 0:00:12]} 3. Nd2 {[%emt 0:00:08]} Nf6 {[%emt 0:00:11]} 4. Ngf3 {[%emt 0:00:18]} c5 {[%emt 0:00:18]} 5. g3 {[%emt 0:00:24]} Nc6 {[%emt 0:00:06]} 6. Bg2 {[%emt 0:00:04]} dxe4 {[%emt 0:00:52]} 7. dxe4 {[%emt 0:00:07]} e5 {[%emt 0:00:12]} 8. O-O {[%emt 0:00:26]} Qc7 {[%emt 0:00:29]} 9. c3 {[%emt 0:00:36]} Be7 {[%emt 0:00:40]} 10. Nc4 {[%emt 0:04:36]} Be6 {[%emt 0:07:03] C00: French: Unusual White 2nd moves} 11. Ne3 {[%emt 0:01:58]} (11. Qe2 h6 12. Nh4 O-O 13. Ne3 Rfd8 14. Nhf5 Bf8 15. Qf3 Be7 16. g4 Rd7 17. h4 Rad8 18. g5 hxg5 19. hxg5 {1-0 (37) Martinez Duany,L (2463)-Andrenko,I (2233) Mexico City 2012}) 11... Nxe4 {[%emt 0:05:37]} 12. Nd5 $146 {[%emt 0:03:15]} ({Predecessor:} 12. Qa4 f5 13. Re1 O-O 14. Nxf5 Bxf5 15. Rxe4 Bxe4 16. Qxe4 Rad8 17. Bg5 Qd6 18. Re1 {1-0 (42) Huettig,M (2179)-Bischoff,M (1945) Ditzingen 2006}) 12... Bxd5 {[%emt 0:02:15]} 13. Qxd5 {[%emt 0:00:07]} Nf6 {[%emt 0:00:09]} 14. Qc4 {[%emt 0:00:35]} O-O {[%emt 0:00:43]} 15. Bg5 {[%emt 0:01:21]} h6 {[%emt 0:00:09]} 16. Bxf6 {[%emt 0:00:11]} Bxf6 {[%emt 0:06:53]} 17. Qxc5 {[%emt 0:00:30]} Be7 {[%emt 0:01:03]} 18. Qe3 {[%emt 0:04:30]} (18. Qc4 $14) 18... Bd6 {[%emt 0:01:11]} (18... f5 $11) 19. Rad1 {[%emt 0:06:17]} f5 {[%emt 0:01:50]} 20. Nh4 {[%emt 0:09:04]} Rad8 {[%emt 0:07:38] [#]} (20... Rf6 $1 $11) 21. g4 $1 {[%emt 0:05:29]} Ne7 {[%emt 0:10:40]} 22. gxf5 {[%emt 0:02:59]} ({Much weaker is} 22. Qxa7 $6 e4 $11) 22... Bc5 {[%emt 0:00:35]} 23. Qe4 {[%emt 0:04:21]} Rxd1 {[%emt 0:02:16]} 24. Rxd1 {[%emt 0:00:08]} g5 {[%emt 0:00:14]} 25. Ng6 {[%emt 0:06:03]} Nxg6 {[%emt 0:01:44]} 26. fxg6 {[%emt 0:01:17]} Rxf2 {[%emt 0:00:30]} 27. Kh1 {[%emt 0:08:41]} Rxb2 {[%emt 0:05:36]} 28. Qd5+ {[%emt 0:06:09]} Kg7 {[%emt 0:05:01]} 29. Qe6 {[%emt 0:01:22]} Qe7 {[%emt 0:06:09]} 30. Rd7 {[%emt 0:03:40]} Rb1+ {[%emt 0:00:07]} 31. Bf1 {[%emt 0:00:06]} Rxf1+ {[%emt 0:00:05]} 32. Kg2 {[%emt 0:00:03]} Rf2+ {[%emt 0:00:08]} 33. Kg3 {[%emt 0:00:14]} Qxd7 {[%emt 0:00:51]} 34. Qxd7+ {[%emt 0:00:09]} Kxg6 {[%emt 0:00:13]} 35. Qxb7 {[%emt 0:03:10]} Rf6 {[%emt 0:02:03]} 36. Qe4+ {[%emt 0:04:02]} Kg7 {[%emt 0:02:09]} 37. Qd5 {[%emt 0:01:20]} Bb6 {[%emt 0:02:22]} 38. Qxe5 {[%emt 0:02:04]} Kg6 {[%emt 0:00:10]} 39. Qe4+ {[%emt 0:02:39]} Kg7 {[%emt 0:00:13]} 40. c4 {[%emt 0:00:57]} h5 {[%emt 0:00:17]} 41. Qe7+ {[%emt 0:01:04]} Kg6 {[%emt 0:00:30]} 42. c5 {[%emt 0:01:33]} Ba5 {[%emt 0:00:59]} 43. c6 {[%emt 0:06:38]} Bb6 {[%emt 0:00:05]} 44. Qe4+ {[%emt 0:02:39]} Kh6 {[%emt 0:00:59]} 45. Qc2 {[%emt 0:08:27]} Bc7+ {[%emt 0:04:12]} 46. Kg2 {[%emt 0:00:02]} h4 {[%emt 0:00:10]} 47. h3 {[%emt 0:00:24]} Kg7 {[%emt 0:03:49]} 48. Qd2 {[%emt 0:00:32]} Kh6 {[%emt 0:00:44]} 49. Qc2 {[%emt 0:01:02]} Kg7 {[%emt 0:00:07]} 50. a4 {[%emt 0:00:16]} a5 {[%emt 0:00:03]} 51. Qc5 {[%emt 0:00:43]} Kg6 {[%emt 0:03:22]} 52. Qd4 {[%emt 0:00:30]} Kg7 {[%emt 0:01:52]} 53. Qd7+ {[%emt 0:01:02]} Rf7 {[%emt 0:00:16]} 54. Qe8 $18 {[%emt 0:00:19]} Bb6 {[%emt 0:01:42]} 55. Qe5+ {[%emt 0:00:16]} 1/2-1/2